bitfinex/quotes_SOLUSD_20250107
["timestamp","ask_amount","ask_price","bid_price","bid_amount"]
[1736291926667,0.12549,203.06,202.95,23.776884]
[1736291926964,0.12549,203.06,202.94,26.056884]
[1736291927206,0.12549,203.05,202.95,23.776884]
[1736291927663,0.12549,203.06,202.95,23.776884]
[1736291928328,20.12549,203.07,202.95,23.776884]
[1736291930167,20.0,203.09,202.96,0.12549]
[1736291930365,0.12549,203.06,202.96,0.12549]
[1736291932385,0.12549,203.06,202.95,23.776884]
[1736291932386,0.12549,203.07,202.95,23.902374]
[1736291932551,0.12549,203.07,202.97,23.902374]
[1736291933970,2.01178957,203.12,202.99,23.902374]
[1736291934176,0.12549,203.17,202.99,23.902374]
[1736291935054,0.12549,203.17,203.03,23.902374]
[1736291935265,0.12549,203.17,203.05,0.12549]
[1736291935575,0.12549,203.18,203.07,23.902374]
[1736291935770,0.12549,203.18,203.09,23.776884]
[1736291936284,0.12549,203.17,203.02,6.6235]
[1736291936485,0.12549,203.19,203.03,2.28]
[1736291936979,0.12549,203.17,203.04,23.902374]
[1736291937768,0.12549,203.13,203.02,6.6235]
[1736291937971,0.12549,203.13,203.03,2.28]
[1736291938163,0.12549,203.13,203.04,23.776884]
[1736291938577,0.12549,203.13,202.88,5.73874154]
[1736291938877,2.06655412,203.13,203.01,2.28]
[1736291939686,0.12549,203.09,203.01,2.28]
[1736291940981,0.12549,203.09,202.99,2.28]
[1736291941655,0.12549,203.11,202.99,2.28]
[1736291942581,0.12549,203.09,202.99,2.28]
[1736291942757,0.12549,203.09,202.96,6.6235]
[1736291942956,5.12549,203.09,202.95,1.6373]
[1736291943170,0.12549,203.05,202.95,3.9173]
[1736291943365,0.12549,203.05,202.95,1.6373]
[1736291943590,0.12549,203.03,202.95,1.6373]
[1736291945288,0.12549,203.08,202.95,1.6373]
[1736291945662,0.12549,203.05,202.95,1.6373]
[1736291949089,2.28,203.08,202.96,23.902374]
[1736291949287,2.02150043,203.09,202.96,23.902374]
[1736291949469,87.3,203.14,202.96,23.902374]
[1736291949786,5.0,203.14,202.96,23.902374]
[1736291949970,1.96163583,203.13,202.98,23.902374]
[1736291950288,0.12549,203.12,203.0,23.776884]
[1736291951479,0.12549,203.12,203.02,23.776884]
[1736291952685,2.00881341,203.15,203.05,1.73259]
[1736291952892,7.69827066,203.18,203.06,26.056884]
[1736291953103,0.12549,203.16,203.06,26.056884]
[1736291953769,0.12549,203.17,203.07,0.12549]
[1736291954567,0.12549,203.14,203.07,0.12549]
[1736291955469,0.12549,203.17,203.07,0.12549]
[1736291956293,0.12549,203.18,203.07,0.12549]
[1736291957073,20.12549,203.18,203.07,0.12549]
[1736291957596,0.12549,203.18,203.07,0.12549]
[1736291958488,20.12549,203.18,203.07,0.12549]
[1736291958871,20.12549,203.18,203.08,1.661]
[1736291959073,20.12549,203.18,203.09,23.902374]
[1736291959389,0.12549,203.18,203.1,6.1739]
[1736291959591,7.69827066,203.22,203.11,23.902374]
[1736291960184,0.12549,203.18,203.11,23.902374]
[1736291960975,20.12549,203.22,203.11,23.902374]
[1736291961793,20.12549,203.22,203.1,6.1739]
[1736291961794,0.12549,203.2,203.1,6.1739]
[1736291962001,0.12549,203.2,203.08,1.661]
[1736291962315,0.12549,203.2,203.09,23.776884]
[1736291962676,2.40549,203.2,203.09,23.776884]
[1736291963086,0.12549,203.2,203.1,0.12549]
[1736291963377,20.12549,203.2,203.09,23.776884]
[1736291966270,20.12549,203.2,203.08,1.661]
[1736291966492,9.22939384,203.23,203.08,1.661]
[1736291966493,20.12549,203.18,203.08,1.661]
[1736291966795,0.12549,203.15,203.08,1.661]
[1736291973889,1.97632454,203.16,203.09,23.776884]
[1736291974096,2.28,203.22,203.1,0.12549]
[1736291974406,0.12549,203.21,203.1,0.12549]
[1736291975215,20.12549,203.21,203.1,0.12549]
[1736291975390,20.12549,203.21,203.12,23.776884]
[1736291979901,0.12549,203.19,203.11,6.6625]
[1736291980989,20.12549,203.21,203.11,6.6625]
[1736291981510,20.12549,203.21,203.12,23.776884]
[1736291982496,20.12549,203.21,203.14,23.776884]
[1736291989542,20.12549,203.21,203.13,1.5788]
[1736291991830,20.12549,203.21,203.13,1.5788]
[1736291994420,0.12549,203.19,203.13,1.5788]
[1736291995031,20.0,203.21,203.13,1.5788]
[1736291995637,0.12549,203.2,203.13,1.5788]
[1736292003249,20.12549,203.2,203.13,1.5788]
[1736292004812,0.12549,203.2,203.13,1.5788]
[1736292005149,20.0,203.19,203.13,1.5788]
[1736292005312,20.0,203.19,203.14,6.2073]
[1736292005635,0.12549,203.18,203.14,6.2073]
[1736292006547,20.0,203.2,203.14,6.2073]
[1736292007236,0.12549,203.19,203.14,6.2073]
[1736292008527,0.12549,203.2,203.14,6.2073]
[1736292009760,20.12549,203.2,203.14,6.2073]
[1736292010920,54.39140349,203.2,203.14,6.2073]
[1736292013833,54.39140349,203.2,203.13,1.5788]
[1736292014718,0.12549,203.14,203.13,1.5788]
[1736292017256,0.12549,203.16,203.13,1.5788]
[1736292022258,0.12549,203.16,203.14,23.776884]
[1736292023449,0.12549,203.19,203.14,23.776884]
[1736292024775,0.12549,203.16,203.14,23.776884]
[1736292028360,0.12549,203.16,203.13,1.5788]
[1736292038978,0.12549,203.16,203.14,23.776884]
[1736292045051,34.26591349,203.2,203.15,0.12549]
[1736292045674,0.12549,203.19,203.15,0.12549]
[1736292048194,3.98823584,203.28,203.17,23.902374]
[1736292048195,11.6865065,203.28,203.17,23.902374]
[1736292048356,7.69827066,203.28,203.19,23.902374]
[1736292048677,0.12549,203.27,203.21,23.776884]
[1736292048976,0.12549,203.24,203.22,2.28]
[1736292049183,30.12549,203.23,203.22,2.28]
[1736292049472,0.12549,203.19,203.18,1.5918]
[1736292049695,0.12549,203.19,203.18,3.8718]
[1736292049872,0.12549,203.19,203.18,1.5918]
[1736292050088,0.12549,203.19,203.17,2.28]
[1736292050263,0.12549,203.19,203.15,2.28]
[1736292052078,0.12549,203.19,203.16,23.776884]
[1736292052382,0.12549,203.19,203.15,2.28]
[1736292054282,20.12549,203.16,203.15,26.056884]
[1736292054803,0.12549,203.15,203.13,1.5411]
[1736292054981,0.12549,203.15,203.14,2.28]
[1736292057682,0.12549,203.2,203.14,2.28]
[1736292058500,20.0,203.22,203.15,23.776884]
[1736292058933,13.91517066,203.27,203.15,23.776884]
[1736292059205,13.91517066,203.27,203.15,23.902374]
[1736292060007,0.12549,203.23,203.15,23.902374]
[1736292060476,1.99753083,203.27,203.15,23.902374]
[1736292060679,6.3517,203.32,203.15,23.902374]
[1736292060680,0.12549,203.24,203.15,23.902374]
[1736292061298,0.12549,203.28,203.15,23.902374]
[1736292061699,9.65442548,203.31,203.17,0.12549]
[1736292061890,7.69827066,203.31,203.21,30.159174]
[1736292062082,7.69827066,203.31,203.23,23.902374]
[1736292062410,7.69827066,203.34,203.23,23.902374]
[1736292062891,6.3517,203.38,203.23,23.902374]
[1736292063088,0.12549,203.37,203.23,23.902374]
[1736292063506,20.0,203.35,203.23,23.902374]
[1736292063708,0.12549,203.34,203.23,23.902374]
[1736292064592,27.39128866,203.39,203.25,23.902374]
[1736292064593,7.69827066,203.39,203.25,23.902374]
[1736292064905,0.12549,203.38,203.25,23.902374]
[1736292065607,0.12549,203.36,203.27,23.902374]
[1736292065992,29.22823984,203.4,203.27,23.902374]
[1736292067307,29.22823984,203.4,203.29,23.902374]
[1736292067495,3.98823584,203.42,203.33,23.902374]
[1736292067983,0.12549,203.41,203.33,23.902374]
[1736292068580,0.12549,203.39,203.33,23.902374]
[1736292069213,0.12549,203.42,203.33,23.902374]
[1736292069887,3.98823584,203.47,203.33,23.902374]
[1736292069888,20.0,203.44,203.33,23.902374]
[1736292070087,0.12549,203.43,203.33,23.902374]
[1736292070709,0.12549,203.44,203.33,23.902374]
[1736292071082,20.12549,203.44,203.33,23.902374]
[1736292072009,20.12549,203.44,203.35,23.776884]
[1736292076196,20.12549,203.44,203.36,2.26]
[1736292076411,20.12549,203.44,203.32,3.8761]
[1736292078015,20.0,203.33,203.32,3.8761]
[1736292078231,20.12549,203.33,203.32,3.8761]
[1736292081830,20.12549,203.33,203.32,1.6161]
[1736292082028,0.12549,203.32,203.27,1.6606]
[1736292082200,0.12549,203.32,203.3,2.26]
[1736292084102,0.12549,203.32,203.31,23.776884]
[1736292084722,0.12549,203.38,203.31,23.776884]
[1736292085610,0.12549,203.42,203.31,23.776884]
[1736292087207,20.12549,203.38,203.27,1.6606]
[1736292087791,0.12549,203.28,203.27,1.6606]
[1736292094106,0.12549,203.28,203.25,2.26]
[1736292102146,0.12549,203.28,203.23,2.26]
[1736292103308,0.12549,203.31,203.23,2.26]
[1736292104446,26.5492,203.36,203.23,2.26]
[1736292104646,20.0,203.37,203.23,2.26]
[1736292104818,0.12549,203.36,203.23,2.26]
[1736292109234,0.12549,203.36,203.24,2.26]
[1736292112130,0.12549,203.36,203.25,23.776884]
[1736292112337,1.99951475,203.39,203.25,23.776884]
[1736292112535,0.12549,203.36,203.25,23.776884]
[1736292113729,0.12549,203.36,203.25,29.923784]
[1736292114113,20.0,203.37,203.27,23.776884]
[1736292114114,0.12549,203.37,203.27,23.776884]
[1736292115834,0.12549,203.37,203.26,1.6236]
[1736292116042,0.12549,203.27,203.26,1.6236]
[1736292117522,30.12549,203.27,203.26,1.6236]
[1736292119123,12.69827066,203.39,203.26,1.6236]
[1736292119124,20.0,203.36,203.26,1.6236]
[1736292119329,0.12549,203.35,203.26,1.6236]
[1736292120648,0.12549,203.36,203.26,1.6236]
[1736292121239,0.12549,203.36,203.27,23.776884]
[1736292121720,20.12549,203.38,203.27,23.776884]
[1736292122537,20.12549,203.38,203.27,30.155684]
[1736292122744,0.12549,203.38,203.27,30.155684]
[1736292124928,0.12549,203.38,203.28,2.26]
[1736292128548,0.12549,203.38,203.29,23.776884]
[1736292129352,20.12549,203.38,203.29,23.776884]
[1736292129933,0.12549,203.38,203.29,23.776884]
[1736292131445,0.12549,203.38,203.31,23.776884]
[1736292139764,0.12549,203.38,203.3,1.5421]
[1736292141848,30.12549,203.31,203.3,1.5421]
[1736292143269,0.12549,203.31,203.3,1.5421]
[1736292146279,30.12549,203.31,203.3,1.5421]
[1736292147872,20.12549,203.28,203.27,6.3788]
[1736292148062,20.12549,203.28,203.25,3.8257]
[1736292148063,0.12549,203.27,203.25,3.8257]
[1736292148374,30.12549,203.27,203.25,3.8257]
[1736292148952,30.12549,203.27,203.25,1.5657]
[1736292151381,0.12549,203.32,203.25,1.5657]
[1736292151675,0.12549,203.32,203.26,23.776884]
[1736292152070,0.12549,203.36,203.26,23.776884]
[1736292152293,2.13856087,203.36,203.26,23.776884]
[1736292152457,0.12549,203.34,203.26,23.776884]
[1736292153593,0.12549,203.35,203.26,23.776884]
[1736292154889,0.12549,203.35,203.26,26.036884]
[1736292155878,0.12549,203.35,203.26,2.26]
[1736292160091,0.12549,203.35,203.27,23.776884]
[1736292160578,20.12549,203.37,203.27,23.776884]
[1736292162064,0.12549,203.35,203.27,23.776884]
[1736292163485,0.12549,203.35,203.26,2.26]
[1736292164389,0.12549,203.35,203.26,26.036884]
[1736292164982,0.12549,203.35,203.26,23.776884]
[1736292165186,20.12549,203.35,203.26,23.776884]
[1736292165582,20.12549,203.35,203.25,3.8257]
[1736292166368,20.12549,203.35,203.26,23.776884]
[1736292166976,0.12549,203.35,203.26,23.776884]
[1736292174481,0.12549,203.35,203.26,26.036884]
[1736292177196,0.12549,203.35,203.26,23.776884]
[1736292177410,0.12549,203.35,203.26,26.036884]
[1736292190802,0.12549,203.35,203.26,23.776884]
[1736292190999,0.12549,203.33,203.27,2.26]
[1736292191394,0.12549,203.33,203.28,23.776884]
[1736292191995,0.12549,203.33,203.27,2.26]
[1736292193418,20.12549,203.28,203.27,26.036884]
[1736292197323,0.12549,203.28,203.27,26.036884]
[1736292219539,0.12549,203.28,203.27,23.776884]
[1736292219744,0.12549,203.28,203.27,26.036884]
[1736292258780,0.12549,203.28,203.27,26.136884]
[1736292273789,0.12549,203.28,203.27,27.0001112]
[1736292273991,0.12549,203.28,203.27,32.0001112]
[1736292274786,0.12549,203.28,203.27,41.302323]
[1736292274984,0.12549,203.28,203.27,38.2328112]
[1736292275796,39.29035333,203.46,203.3,23.902374]
[1736292275967,0.12549,203.45,203.32,23.902374]
[1736292276380,39.29035333,203.46,203.31,0.73741092]
[1736292276381,20.0,203.43,203.34,23.902374]
[1736292276599,0.12549,203.42,203.36,23.902374]
[1736292277716,0.12549,203.43,203.36,23.902374]
[1736292281313,0.12549,203.43,203.33,7.9319]
[1736292281314,0.12549,203.43,203.37,2.26]
[1736292281615,0.12549,203.43,203.38,23.776884]
[1736292295150,0.12549,203.43,203.34,23.902374]
[1736292295321,0.12549,203.43,203.36,23.776884]
[1736292303148,2.00585268,203.46,203.37,0.12549]
[1736292303444,0.12549,203.51,203.39,23.776884]
[1736292304051,0.12549,203.48,203.39,23.776884]
[1736292307239,0.12549,203.48,203.4,0.12549]
[1736292308341,18.91214573,203.52,203.4,0.12549]
[1736292308342,1.93010148,203.52,203.42,23.902374]
[1736292308554,6.463,203.57,203.44,23.902374]
[1736292308940,0.12549,203.53,203.44,23.902374]
[1736292309962,2.02117818,203.57,203.47,6.3298]
[1736292310251,7.69947675,203.6,203.48,23.902374]
[1736292310461,0.12549,203.59,203.48,23.902374]
[1736292310661,7.69947675,203.6,203.48,23.902374]
[1736292310833,20.0,203.57,203.48,23.902374]
[1736292311033,0.12549,203.59,203.48,23.902374]
[1736292311927,0.12549,203.59,203.48,23.776884]
[1736292315067,0.12549,203.59,203.49,0.12549]
[1736292315255,0.12549,203.59,203.51,23.902374]
[1736292316521,0.12549,203.59,203.51,23.776884]
[1736292318542,0.12549,203.59,203.53,23.776884]
[1736292318933,0.12549,203.59,203.52,2.26]
[1736292319163,0.12549,203.59,203.5,1.53]
[1736292319372,1.9891462,203.6,203.49,2.26]
[1736292319373,0.12549,203.56,203.49,2.26]
[1736292321874,30.0,203.53,203.49,2.26]
[1736292322063,20.12549,203.5,203.49,26.036884]
[1736292322556,0.12549,203.5,203.49,26.036884]
[1736292327653,0.12549,203.5,203.49,2.26]
[1736292330165,20.12549,203.5,203.49,2.26]
[1736292331765,0.12549,203.5,203.49,2.26]
[1736292338073,21.95949698,203.59,203.45,3.8885]
[1736292338074,0.12549,203.49,203.45,3.8885]
[1736292338260,0.12549,203.46,203.45,3.8885]
[1736292338659,0.12549,203.46,203.43,2.26]
[1736292339275,0.12549,203.46,203.35,8.1819]
[1736292339460,30.12549,203.46,203.35,8.1819]
[1736292339666,0.12549,203.42,203.36,2.26]
[1736292340778,0.12549,203.42,203.37,23.776884]
[1736292340982,0.12549,203.42,203.38,0.12549]
[1736292341458,0.12549,203.42,203.37,23.776884]
[1736292341778,0.12549,203.49,203.37,23.776884]
[1736292342267,0.12549,203.52,203.37,23.776884]
[1736292343759,0.12549,203.53,203.37,23.776884]
[1736292345490,20.12549,203.53,203.37,23.776884]
[1736292347051,0.12549,203.48,203.37,23.776884]
[1736292349203,0.12549,203.48,203.36,23.776884]
[1736292349496,0.12549,203.48,203.39,23.776884]
[1736292350502,0.12549,203.48,203.38,2.24]
[1736292350867,2.14666597,203.48,203.38,2.24]
[1736292351399,2.14666597,203.48,203.36,23.776884]
[1736292351605,2.14666597,203.48,203.38,23.776884]
[1736292352709,0.12549,203.48,203.38,23.776884]
[1736292353701,0.12549,203.48,203.39,0.12549]
[1736292354877,0.12549,203.54,203.41,23.902374]
[1736292363022,0.12549,203.54,203.43,23.902374]
[1736292364223,0.12549,203.54,203.43,23.776884]
[1736292365618,0.12549,203.49,203.4,1.5271]
[1736292365794,0.12549,203.49,203.44,2.24]
[1736292370023,0.12549,203.49,203.44,2.188534]
[1736292372926,0.92449,203.49,203.44,2.188534]
[1736292373136,0.92449,203.49,203.41,2.24]
[1736292373331,0.92449,203.49,203.35,1.5445]
[1736292373630,0.92449,203.49,203.4,2.24]
[1736292373928,0.12549,203.44,203.39,2.24]
[1736292375012,0.12549,203.44,203.35,1.5445]
[1736292375209,0.12549,203.44,203.38,2.24]
[1736292377524,0.12549,203.4,203.38,2.24]
[1736292378211,0.12549,203.44,203.38,2.24]
[1736292379623,2.13836432,203.44,203.38,2.24]
[1736292380329,0.12549,203.44,203.38,2.24]
[1736292385611,0.12549,203.44,203.32,23.902374]
[1736292385818,0.12549,203.44,203.34,23.776884]
[1736292398750,0.12549,203.44,203.32,23.902374]
[1736292398951,0.12549,203.44,203.36,23.776884]
[1736292403252,0.12549,203.44,203.37,2.24]
[1736292404633,0.12549,203.44,203.32,23.902374]
[1736292404957,0.12549,203.44,203.33,2.24]
[1736292406233,0.12549,203.39,203.33,2.24]
[1736292406535,0.12549,203.39,203.31,1.6336]
[1736292406536,0.12549,203.39,203.32,23.776884]
[1736292406743,0.12549,203.39,203.33,2.24]
[1736292407057,0.12549,203.43,203.33,2.24]
[1736292407566,0.12549,203.43,203.34,23.776884]
[1736292413148,0.12549,203.43,203.36,23.776884]
[1736292418665,0.12549,203.43,203.37,2.24]
[1736292429978,0.12549,203.43,203.32,23.776884]
[1736292430159,0.12549,203.43,203.36,2.24]
[1736292430953,0.12549,203.43,203.37,23.776884]
[1736292438408,30.79790703,203.55,203.46,26.0419]
[1736292438589,30.79790703,203.55,203.49,0.12549]
[1736292438769,30.79790703,203.55,203.51,0.12549]
[1736292439105,30.79790703,203.55,203.51,40.06082338]
[1736292439807,14.12737675,203.69,203.53,0.12549]
[1736292439994,0.12549,203.65,203.53,0.12549]
[1736292441103,0.12549,203.68,203.54,23.776884]
[1736292441569,20.0,203.66,203.56,23.776884]
[1736292442096,0.12549,203.65,203.56,23.776884]
[1736292444267,0.12549,203.65,203.56,25.306484]
[1736292444701,0.12549,203.65,203.57,0.12549]
[1736292445002,6.2188,203.74,203.59,23.902374]
[1736292445297,0.12549,203.7,203.59,23.902374]
[1736292446193,0.12549,203.7,203.59,24.63883799]
[1736292446902,0.12549,203.7,203.59,23.902374]
[1736292447283,0.12549,203.7,203.59,23.776884]
[1736292447869,0.12549,203.7,203.58,2.24]
[1736292448272,0.12549,203.7,203.59,23.776884]
[1736292449798,2.08877551,203.7,203.59,23.776884]
[1736292452202,0.12549,203.68,203.56,1.5296]
[1736292452497,0.12549,203.68,203.57,23.776884]
[1736292470525,0.12549,203.66,203.56,1.5296]
[1736292470830,0.12549,203.64,203.56,1.5296]
[1736292475766,2.11721952,203.64,203.56,1.5296]
[1736292476463,2.11721952,203.64,203.57,23.776884]
[1736292484463,2.11721952,203.64,203.56,1.5296]
[1736292487571,2.11721952,203.64,203.57,23.776884]
[1736292490772,2.11721952,203.64,203.56,1.5296]
[1736292494911,22.11721952,203.64,203.56,1.5296]
[1736292509005,22.11721952,203.64,203.52,2.24]
[1736292509525,22.11721952,203.64,203.53,23.776884]
[1736292511618,22.11721952,203.64,203.51,8.1849]
[1736292511619,22.11721952,203.64,203.51,1.5501]
[1736292511806,0.12549,203.56,203.48,7.71379828]
[1736292512314,0.12549,203.56,203.46,11.50389828]
[1736292512621,0.12549,203.56,203.48,23.776884]
[1736292512914,0.12549,203.56,203.46,3.7901]
[1736292513929,0.12549,203.56,203.47,23.776884]
[1736292515518,2.09774357,203.56,203.47,23.776884]
[1736292527518,1.91309117,203.56,203.47,23.776884]
[1736292527712,20.0,203.57,203.47,23.776884]
[1736292528810,21.98648276,203.57,203.47,23.776884]
[1736292531637,20.0,203.57,203.49,23.776884]
[1736292536546,20.0,203.57,203.47,23.902374]
[1736292539139,20.0,203.57,203.49,23.902374]
[1736292540751,6.9814,203.65,203.49,23.902374]
[1736292540935,6.9814,203.65,203.51,23.902374]
[1736292541123,20.0,203.62,203.53,23.776884]
[1736292542242,0.12549,203.61,203.53,23.776884]
[1736292546523,0.12549,203.61,203.54,2.24]
[1736292551566,2.05348389,203.61,203.54,2.24]
[1736292563079,2.05348389,203.61,203.55,23.776884]
[1736292563252,0.12549,203.61,203.55,23.776884]
[1736292575281,0.12549,203.65,203.55,23.776884]
[1736292577481,6.2031,203.64,203.56,2.24]
[1736292577788,0.12549,203.6,203.55,2.24]
[1736292591509,0.12549,203.6,203.49,7.71379828]
[1736292591805,0.12549,203.55,203.49,7.71379828]
[1736292592107,0.12549,203.55,203.49,9.95379828]
[1736292592493,0.12549,203.55,203.49,2.24]
[1736292595515,0.12549,203.55,203.44,23.902374]
[1736292595699,0.12549,203.55,203.46,23.776884]
[1736292603193,0.12549,203.55,203.47,0.86252794]
[1736292603388,0.12549,203.55,203.49,0.12549]
[1736292603704,19.75618406,203.64,203.51,0.12549]
[1736292603705,26.67258406,203.64,203.51,0.12549]
[1736292603907,26.67258406,203.64,203.53,0.12549]
[1736292604100,0.12549,203.63,203.53,0.12549]
[1736292605002,20.0,203.61,203.53,0.12549]
[1736292605208,0.12549,203.6,203.53,0.12549]
[1736292605509,0.12549,203.6,203.52,26.016884]
[1736292612023,0.12549,203.6,203.5,23.776884]
[1736292612325,0.12549,203.6,203.52,23.776884]
[1736292617839,0.12549,203.6,203.53,0.12549]
[1736292618137,0.12549,203.6,203.54,23.776884]
[1736292618539,0.12549,203.6,203.52,23.902374]
[1736292619443,0.12549,203.6,203.52,36.185774]
[1736292619743,0.12549,203.6,203.54,23.902374]
[1736292620136,0.12549,203.6,203.54,0.12549]
[1736292620844,0.12549,203.6,203.51,2.24]
[1736292621026,0.12549,203.6,203.52,23.776884]
[1736292622851,0.12549,203.6,203.53,2.24]
[1736292630563,0.12549,203.6,203.54,23.776884]
[1736292632246,0.12549,203.6,203.55,2.24]
[1736292632764,0.12549,203.6,203.5,23.902374]
[1736292632986,0.12549,203.6,203.52,23.776884]
[1736292638776,0.12549,203.6,203.5,0.12549]
[1736292638777,0.12549,203.6,203.53,2.24]
[1736292640377,2.05862637,203.6,203.53,2.24]
[1736292640678,0.12549,203.6,203.53,2.24]
[1736292643367,0.12549,203.6,203.48,23.902374]
[1736292643368,0.12549,203.55,203.48,23.902374]
[1736292643581,0.12549,203.55,203.53,2.24]
[1736292648296,0.12549,203.55,203.48,23.776884]
[1736292653385,0.12549,203.55,203.49,0.12549]
[1736292653583,0.12549,203.55,203.51,0.12549]
[1736292653793,0.12549,203.55,203.52,23.776884]
[1736292654359,0.12549,203.55,203.49,23.902374]
[1736292654560,0.12549,203.55,203.49,23.776884]
[1736292654782,0.12549,203.55,203.48,1.561]
[1736292654989,0.12549,203.55,203.49,23.776884]
[1736292655173,0.12549,203.55,203.48,23.902374]
[1736292656391,0.12549,203.55,203.49,0.7368978]
[1736292656564,0.12549,203.55,203.5,0.12549]
[1736292660003,0.12549,203.58,203.52,23.776884]
[1736292660506,0.12549,203.6,203.5,23.902374]
[1736292661083,0.12549,203.6,203.5,0.12549]
[1736292661285,0.12549,203.6,203.5,23.902374]
[1736292662607,0.12549,203.6,203.5,0.12549]
[1736292663109,0.12549,203.6,203.51,2.22]
[1736292664184,0.12549,203.6,203.52,23.776884]
[1736292667781,0.12549,203.6,203.54,23.776884]
[1736292673113,0.12549,203.6,203.53,2.22]
[1736292673300,0.12549,203.6,203.49,7.71379828]
[1736292673618,0.12549,203.6,203.53,2.22]
[1736292674122,0.12549,203.6,203.46,23.902374]
[1736292674288,0.12549,203.6,203.45,7.71379828]
[1736292674493,0.12549,203.58,203.47,2.22]
[1736292675000,0.12549,203.58,203.48,23.776884]
[1736292677288,0.12549,203.56,203.49,2.22]
[1736292678106,20.12549,203.56,203.49,2.22]
[1736292678306,20.12549,203.56,203.5,23.776884]
[1736292679895,0.12549,203.56,203.5,24.51377346]
[1736292680213,2.73578442,203.63,203.51,0.12549]
[1736292680416,0.12549,203.6,203.51,0.12549]
[1736292683101,0.12549,203.6,203.53,23.776884]
[1736292683324,6.4839,203.64,203.56,0.12549]
[1736292683524,0.799,203.68,203.58,23.776884]
[1736292683727,0.12549,203.65,203.58,23.776884]
[1736292684926,0.799,203.68,203.58,23.776884]
[1736292685226,0.799,203.68,203.59,0.12549]
[1736292685411,0.12549,203.67,203.59,0.12549]
[1736292686010,0.12549,203.68,203.59,0.12549]
[1736292686219,0.799,203.73,203.61,23.902374]
[1736292686532,0.12549,203.73,203.63,23.902374]
[1736292686709,0.12549,203.7,203.65,23.902374]
[1736292687198,21.12935115,203.78,203.66,0.73627542]
[1736292687398,21.12935115,203.78,203.67,23.902374]
[1736292687714,0.12549,203.74,203.64,2.22]
[1736292688035,0.12549,203.74,203.65,2.22]
[1736292688214,0.12549,203.74,203.66,2.22]
[1736292689644,0.12549,203.69,203.66,2.22]
[1736292696337,0.12549,203.69,203.67,23.776884]
[1736292696531,7.0522,203.78,203.67,23.776884]
[1736292696950,0.12549,203.77,203.67,23.776884]
[1736292697152,0.12549,203.74,203.67,23.776884]
[1736292699735,0.12549,203.74,203.68,0.12549]
[1736292699918,0.12549,203.74,203.69,23.776884]
[1736292700258,0.12549,203.77,203.69,23.776884]
[1736292700588,0.12549,203.76,203.69,23.776884]
[1736292702246,0.12549,203.76,203.7,0.12549]
[1736292702420,7.1132,203.9,203.72,23.902374]
[1736292702746,20.0,203.87,203.74,23.902374]
[1736292703049,0.12549,203.86,203.74,23.902374]
[1736292703638,0.12549,203.89,203.74,23.902374]
[1736292703842,0.12549,203.86,203.74,23.902374]
[1736292705429,0.12549,203.86,203.76,23.902374]
[1736292711977,0.12549,203.86,203.76,23.776884]
[1736292712453,0.12549,203.86,203.77,0.12549]
[1736292720465,1.98918169,203.91,203.77,0.12549]
[1736292720665,0.12549,203.92,203.77,0.12549]
[1736292720842,0.12549,203.89,203.77,0.12549]
[1736292722069,0.12549,203.89,203.76,6.4668]
[1736292722440,0.12549,203.89,203.77,23.776884]
[1736292722641,20.0,203.85,203.75,1.5293]
[1736292722841,0.12549,203.84,203.76,2.22]